fUST/lending_fUST_20240225
["ID","MTS","AMOUNT","RATE_DAILY","PERIOD"]
[315113992,1708842642826,-1557.26,0.0002,2]
[315113993,1708842642835,-3756.32,0.0002,2]
[315113994,1708842642844,-500.0,0.0002,2]
[315113995,1708842642853,-5731.85,0.0002,2]
[315113996,1708842642862,-500.0,0.0002,2]
[315113997,1708842642872,-760.39,0.0002,2]
[315113998,1708842642882,-300.0,0.00020002,2]
[315113999,1708842642891,-166.666666,0.00020076,2]
[315114000,1708842642900,-500.0,0.000201,2]
[315114001,1708842642910,-175.5,0.000201,2]
[315114002,1708842642919,-150.001299,0.000201,2]
[315114003,1708842642928,-300.0,0.0002014,2]
[315114004,1708842642937,-200.0,0.000202,2]
[315114005,1708842642946,-500.0,0.00020273,2]
[315114006,1708842642955,-500.0,0.00020273,2]
[315114007,1708842642964,-593.65,0.00020273,2]
[315114008,1708842642973,-500.0,0.00020273,2]
[315114009,1708842642982,-500.0,0.00020273,2]
[315114010,1708842642991,-893.57,0.00020273,2]
[315114011,1708842643000,-508.47,0.00020273,2]
[315114012,1708842643010,-500.0,0.00020273,2]
[315114013,1708842643019,-500.0,0.00020273,2]
[315114014,1708842643028,-1671.45,0.00020273,2]
[315114015,1708842643038,-851.02,0.00020273,2]
[315114016,1708842643046,-1547.62,0.00020273,2]
[315114017,1708842643055,-500.0,0.00020273,2]
[315114018,1708842643064,-500.0,0.00020273,2]
[315114020,1708842643074,-500.0,0.00020273,2]
[315114021,1708842643083,-984.61,0.00020273,2]
[315114022,1708842643091,-1575.29,0.00020273,2]
[315114023,1708842643100,-951.86,0.00020273,2]
[315114024,1708842643109,-1108.64,0.00020273,2]
[315114025,1708842643118,-1321.94,0.00020273,2]
[315114026,1708842643127,-1633.22,0.00020273,2]
[315114027,1708842643135,-1206.07,0.00020273,2]
[315114028,1708842643145,-504.74955839,0.00020273,2]
[315114029,1708842643156,-8801.12,0.00020273,2]
[315114030,1708842643166,-637.72252166,0.00020273,2]
[315114031,1708842643175,-1720.21,0.00020273,2]
[315114032,1708842643185,-1944.57,0.00020273,2]
[315114033,1708842643195,-500.0,0.00020273,2]
[315114034,1708842643204,-500.0,0.00020273,2]
[315114035,1708842643213,-1184.28,0.00020273,2]
[315114036,1708842643222,-500.0,0.00020273,2]
[315114037,1708842643231,-10919.63,0.00020273,2]
[315114038,1708842643241,-500.0,0.00020273,2]
[315114039,1708842643251,-500.0,0.00020273,2]
[315114040,1708842643260,-718.19,0.00020273,2]
[315114041,1708842643269,-543.41,0.00020273,2]
[315114042,1708842643277,-500.0,0.00020273,2]
[315114043,1708842643286,-6251.27,0.00020273,2]
[315114044,1708842643295,-500.0,0.00020273,2]
[315114045,1708842643304,-500.0,0.00020273,2]
[315114046,1708842643313,-500.0,0.00020273,2]
[315114047,1708842643323,-514.01,0.00020273,2]
[315114048,1708842643332,-716.08,0.00020273,2]
[315114049,1708842643341,-2652.32,0.00020273,2]
[315114050,1708842643350,-868.85,0.00020273,2]
[315114051,1708842643359,-1557.26,0.00020273,2]
[315114052,1708842643369,-3756.32,0.00020273,2]
[315114053,1708842643377,-500.0,0.00020273,2]
[315114054,1708842643387,-5731.85,0.00020273,2]
[315114055,1708842643396,-500.0,0.00020273,2]
[315114056,1708842643405,-760.39,0.00020273,2]
[315114057,1708842643414,-300.0,0.00020278,2]
[315114058,1708842643423,-580.0,0.000203,2]
[315114059,1708842643432,-2695.93674224,0.00020383,2]
[315114060,1708842643442,-153.0,0.00020411,2]
[315114061,1708842643451,-153.0,0.00020411,2]
[315114062,1708842643461,-153.0,0.00020411,2]
[315114063,1708842643470,-153.0,0.00020411,2]
[315114064,1708842643479,-153.0,0.00020411,2]
[315114065,1708842643488,-352.0619364,0.00020411,2]
[315114066,1708842643497,-300.0,0.00020415,2]
[315114067,1708842643507,-193.14192034,0.00020483,2]
[315114068,1708842643516,-153.0,0.00020521,2]
[315114069,1708842643526,-166.666666,0.00020524,2]
[315114070,1708842643535,-500.0,0.00020547,2]
[315114071,1708842643544,-500.0,0.00020547,2]
[315114072,1708842643554,-593.65,0.00020547,2]
[315114073,1708842643563,-500.0,0.00020547,2]
[315114074,1708842643573,-500.0,0.00020547,2]
[315114075,1708842643583,-893.57,0.00020547,2]
[315114076,1708842643593,-508.47,0.00020547,2]
[315114077,1708842643603,-500.0,0.00020547,2]
[315114078,1708842643611,-500.0,0.00020547,2]
[315114079,1708842643620,-1671.45,0.00020547,2]
[315114080,1708842643630,-851.02,0.00020547,2]
[315114081,1708842643640,-1547.62,0.00020547,2]
[315114082,1708842643650,-500.0,0.00020547,2]
[315114083,1708842643661,-506.07741566,0.00020547,2]
[315114084,1708842643670,-500.0,0.00020547,2]
[315114085,1708842643679,-984.61,0.00020547,2]
[315114087,1708842643688,-1575.29,0.00020547,2]
[315114090,1708842643697,-951.86,0.00020547,2]
[315114093,1708842643707,-1108.64,0.00020547,2]
[315114096,1708842643716,-1321.94,0.00020547,2]
[315114098,1708842643725,-1633.22,0.00020547,2]
[315114100,1708842643734,-1206.07,0.00020547,2]
[315114101,1708842643743,-8801.12,0.00020547,2]
[315114102,1708842643753,-1720.21,0.00020547,2]
[315114104,1708842643762,-1944.57,0.00020547,2]
[315114106,1708842643771,-500.0,0.00020547,2]
[315114108,1708842643779,-500.0,0.00020547,2]
[315114109,1708842643788,-1184.28,0.00020547,2]
[315114110,1708842643797,-500.0,0.00020547,2]
[315114112,1708842643806,-10919.63,0.00020547,2]
[315114113,1708842643815,-500.0,0.00020547,2]
[315114114,1708842643824,-467.99466473,0.00020547,2]
[315114115,1708842643833,-718.19,0.00020547,2]
[315114116,1708842643843,-543.41,0.00020547,2]
[315114117,1708842643852,-195.52764793,0.00020547,2]
[315114119,1708842643861,-6251.27,0.00020547,2]
[315114120,1708842643871,-500.0,0.00020547,2]
[315114122,1708842643880,-500.0,0.00020547,2]
[315114123,1708842643890,-500.0,0.00020547,2]
[315114124,1708842643899,-514.01,0.00020547,2]
[315114125,1708842643908,-716.08,0.00020547,2]
[315114126,1708842643917,-2652.32,0.00020547,2]
[315114128,1708842643926,-868.85,0.00020547,2]
[315114129,1708842643935,-1557.26,0.00020547,2]
[315114130,1708842643944,-3756.32,0.00020547,2]
[315114131,1708842643953,-500.0,0.00020547,2]
[315114132,1708842643964,-5731.85,0.00020547,2]
[315114133,1708842643974,-500.0,0.00020547,2]
[315114134,1708842643983,-760.39,0.00020547,2]
[315114135,1708842643992,-300.0,0.00020553,2]
[315114136,1708842644001,-1000.0,0.00020583,2]
[315114137,1708842644010,-1000.0,0.00020583,2]
[315114138,1708842644019,-1000.0,0.00020583,2]
[315114139,1708842644028,-1000.0,0.00020583,2]
[315114140,1708842644037,-1000.0,0.00020583,2]
[315114141,1708842644046,-1000.0,0.00020583,2]
[315114142,1708842644055,-1000.0,0.00020583,2]
[315114143,1708842644064,-5000.0,0.00020583,2]
[315114144,1708842644073,-5000.0,0.00020583,2]
[315114145,1708842644082,-5000.0,0.00020583,2]
[315114146,1708842644091,-1000.0,0.00020583,2]
[315114147,1708842644100,-5000.0,0.00020583,2]
[315114152,1708842644187,-5000.0,0.00020583,2]
[315114153,1708842644208,-5000.0,0.00020583,2]
[315114154,1708842644217,-5000.0,0.00020583,2]
[315114155,1708842644227,-5000.0,0.00020583,2]
[315114156,1708842644236,-1000.0,0.00020583,2]
[315114157,1708842644246,-5000.0,0.00020583,2]
[315114158,1708842644255,-5000.0,0.00020583,2]
[315114159,1708842644264,-1000.0,0.00020583,2]
[315114160,1708842644273,-5000.0,0.00020583,2]
[315114161,1708842644282,-5000.0,0.00020583,2]
[315114162,1708842644291,-5000.0,0.00020583,2]
[315114163,1708842644300,-5000.0,0.00020583,2]
[315114164,1708842644308,-5000.0,0.00020583,2]
[315114165,1708842644317,-5000.0,0.00020583,2]
[315114166,1708842644327,-5000.0,0.00020583,2]
[315114167,1708842644336,-5000.0,0.00020583,2]
[315114168,1708842644345,-5000.0,0.00020583,2]
[315114169,1708842644354,-5000.0,0.00020583,2]
[315114170,1708842644363,-5000.0,0.00020583,2]
[315114171,1708842644373,-5000.0,0.00020583,2]
[315114172,1708842644382,-5000.0,0.00020583,2]
[315114173,1708842644391,-5000.0,0.00020583,2]
[315114174,1708842644400,-5000.0,0.00020583,2]
[315114175,1708842644409,-5000.0,0.00020583,2]
[315114176,1708842644418,-5000.0,0.00020583,2]
[315114177,1708842644428,-4291.23795959,0.00020583,2]
[315114178,1708842644517,-708.76204041,0.00020583,2]
[315114179,1708842644527,-5000.0,0.00020583,2]
[315114180,1708842644537,-5000.0,0.00020583,2]
[315114181,1708842644546,-5000.0,0.00020583,2]
[315114182,1708842644556,-5000.0,0.00020583,2]
[315114183,1708842644565,-5000.0,0.00020583,2]
[315114184,1708842644576,-5000.0,0.00020583,2]
[315114185,1708842644585,-5000.0,0.00020583,2]
[315114186,1708842644595,-5000.0,0.00020583,2]
[315114187,1708842644604,-5000.0,0.00020583,2]
[315114188,1708842644614,-5000.0,0.00020583,2]
[315114189,1708842644622,-5000.0,0.00020583,2]
[315114190,1708842644632,-5000.0,0.00020583,2]
[315114191,1708842644641,-5000.0,0.00020583,2]
[315114192,1708842644651,-5000.0,0.00020583,2]
[315114193,1708842644660,-5000.0,0.00020583,2]
[315114194,1708842644669,-5000.0,0.00020583,2]
[315114195,1708842644678,-5000.0,0.00020583,2]
[315114196,1708842644688,-5000.0,0.00020583,2]
[315114197,1708842644698,-5000.0,0.00020583,2]
[315114198,1708842644707,-5000.0,0.00020583,2]
[315114199,1708842644717,-5000.0,0.00020583,2]
[315114200,1708842644727,-5000.0,0.00020583,2]
[315114201,1708842644736,-5000.0,0.00020583,2]
[315114202,1708842644745,-5000.0,0.00020583,2]
[315114203,1708842644755,-5000.0,0.00020583,2]
[315114204,1708842644763,-5000.0,0.00020583,2]
[315114205,1708842644773,-5000.0,0.00020583,2]
[315114206,1708842644782,-5000.0,0.00020583,2]
[315114207,1708842644791,-5000.0,0.00020583,2]
[315114208,1708842644800,-5000.0,0.00020583,2]
[315114209,1708842644809,-5000.0,0.00020583,2]
[315114210,1708842644818,-5000.0,0.00020583,2]
[315114211,1708842644829,-5000.0,0.00020583,2]
[315114212,1708842644838,-5000.0,0.00020583,2]
[315114213,1708842644847,-5000.0,0.00020583,2]
[315114214,1708842644857,-5000.0,0.00020583,2]
[315114215,1708842644867,-1000.0,0.00020583,2]
[315114216,1708842644876,-5000.0,0.00020583,2]
[315114217,1708842644885,-5000.0,0.00020583,2]
[315114218,1708842644894,-5000.0,0.00020583,2]
[315114219,1708842644903,-5000.0,0.00020583,2]
[315114220,1708842644912,-5000.0,0.00020583,2]
[315114221,1708842644922,-5000.0,0.00020616,2]
[315114222,1708842644931,-200.5569553,0.0002063,2]
[315114223,1708842644940,-157.575738,0.00020654,2]
[315114224,1708842644949,-170.012599,0.00020654,2]
[315114225,1708842644958,-157.575735,0.00020654,2]
[315114226,1708842644968,-170.235335,0.00020654,2]
[315114227,1708842644977,-157.575735,0.00020654,2]
[315114228,1708842644987,-170.025173,0.00020654,2]
[315114229,1708842644996,-159.48755,0.00020654,2]
[315114230,1708842645006,-300.0,0.0002069,2]
[315114231,1708842645015,-620.00010575,0.00020778,2]
[315114232,1708842645024,-485.0,0.000208,9]
[315114233,1708842645033,-500.0,0.00020821,2]
[315114234,1708842645042,-500.0,0.00020821,2]
[315114235,1708842645051,-593.65,0.00020821,2]
[315114236,1708842645060,-500.0,0.00020821,2]
[315114237,1708842645069,-500.0,0.00020821,2]
[315114238,1708842645079,-893.57,0.00020821,2]
[315114239,1708842645089,-508.47,0.00020821,2]
[315114240,1708842645098,-500.0,0.00020821,2]
[315114241,1708842645107,-500.0,0.00020821,2]
[315114242,1708842645116,-1671.45,0.00020821,2]
[315114243,1708842645125,-851.02,0.00020821,2]
[315114244,1708842645136,-1547.62,0.00020821,2]
[315114245,1708842645146,-500.0,0.00020821,2]
[315114246,1708842645158,-500.0,0.00020821,2]
[315114247,1708842645167,-984.61,0.00020821,2]
[315114248,1708842645181,-1575.29,0.00020821,2]
[315114249,1708842645196,-951.86,0.00020821,2]
[315114250,1708842645210,-1108.64,0.00020821,2]
[315114251,1708842645223,-1321.94,0.00020821,2]
[315114252,1708842645236,-1633.22,0.00020821,2]
[315114253,1708842645246,-1206.07,0.00020821,2]
[315114254,1708842645258,-8801.12,0.00020821,2]
[315114255,1708842645270,-1720.21,0.00020821,2]
[315114256,1708842645282,-1944.57,0.00020821,2]
[315114257,1708842645294,-500.0,0.00020821,2]
[315114258,1708842645307,-500.0,0.00020821,2]
[315114259,1708842645319,-1184.28,0.00020821,2]
[315114260,1708842645331,-156.17485222,0.00020821,2]
[315114261,1708842645343,-10919.63,0.00020821,2]
[315114262,1708842645353,-500.0,0.00020821,2]
[315114263,1708842645366,-718.19,0.00020821,2]
[315114264,1708842645378,-543.41,0.00020821,2]
[315114265,1708842645389,-6251.27,0.00020821,2]
[315114266,1708842645401,-500.0,0.00020821,2]
[315114267,1708842645412,-500.0,0.00020821,2]
[315114268,1708842645424,-500.0,0.00020821,2]
[315114269,1708842645436,-514.01,0.00020821,2]
[315114270,1708842645449,-716.08,0.00020821,2]
[315114271,1708842645459,-2652.32,0.00020821,2]
[315114272,1708842645470,-868.85,0.00020821,2]
[315114273,1708842645484,-1557.26,0.00020821,2]
[315114274,1708842645496,-3756.32,0.00020821,2]
[315114275,1708842645507,-500.0,0.00020821,2]
[315114276,1708842645519,-5731.85,0.00020821,2]
[315114277,1708842645530,-500.0,0.00020821,2]
[315114278,1708842645540,-760.39,0.00020821,2]
[315114279,1708842645553,-300.0,0.00020828,2]
[315114280,1708842645565,-300.0,0.00020966,2]
[315114281,1708842645580,-166.666666,0.00020973,2]
[315114282,1708842645593,-170.025173,0.00020998,2]
[315114283,1708842645605,-500.0,0.00021095,2]
[315114284,1708842645618,-639.25750099,0.00021095,2]
[315114285,1708842645630,-593.65,0.00021095,2]
[315114286,1708842645642,-500.0,0.00021095,2]
[315114287,1708842645652,-500.0,0.00021095,2]
[315114288,1708842645663,-893.57,0.00021095,2]
[315114289,1708842645673,-508.47,0.00021095,2]
[315114290,1708842645683,-199.44360215,0.00021095,2]
[315114291,1708842645694,-500.0,0.00021095,2]
[315114292,1708842645706,-1671.45,0.00021095,2]
[315114293,1708842645718,-851.02,0.00021095,2]
[315114294,1708842645728,-1547.62,0.00021095,2]
[315114295,1708842645740,-500.0,0.00021095,2]
[315114296,1708842645751,-500.0,0.00021095,2]
[315114297,1708842645762,-984.61,0.00021095,2]
[315114298,1708842645772,-1575.29,0.00021095,2]
[315114299,1708842645783,-951.86,0.00021095,2]
[315114300,1708842645793,-1108.64,0.00021095,2]
[315114301,1708842645804,-1321.94,0.00021095,2]
[315114302,1708842645815,-1633.22,0.00021095,2]
[315114303,1708842645826,-1206.07,0.00021095,2]
[315114304,1708842645837,-8801.12,0.00021095,2]
[315114305,1708842645848,-1720.21,0.00021095,2]
[315114306,1708842645859,-1944.57,0.00021095,2]
[315114307,1708842645870,-481.50824038,0.00021095,2]
[315114308,1708842645880,-500.0,0.00021095,2]
[315114309,1708842645891,-1184.28,0.00021095,2]
[315114310,1708842645902,-10919.63,0.00021095,2]
[315114311,1708842645913,-500.0,0.00021095,2]
[315114312,1708842645923,-718.19,0.00021095,2]
[315114313,1708842645934,-543.41,0.00021095,2]
[315114314,1708842645944,-6251.27,0.00021095,2]
[315114315,1708842645954,-500.0,0.00021095,2]
[315114316,1708842645965,-565.00891754,0.00021095,2]
[315114317,1708842645975,-500.0,0.00021095,2]
[315114318,1708842645986,-514.01,0.00021095,2]
[315114319,1708842645997,-716.08,0.00021095,2]
[315114320,1708842646008,-2652.32,0.00021095,2]
[315114321,1708842646019,-868.85,0.00021095,2]
[315114322,1708842646029,-1557.26,0.00021095,2]
[315114323,1708842646040,-3756.32,0.00021095,2]
[315114324,1708842646051,-500.0,0.00021095,2]
[315114325,1708842646062,-5731.85,0.00021095,2]
[315114326,1708842646073,-500.0,0.00021095,2]
[315114328,1708842646084,-760.39,0.00021095,2]
[315114329,1708842646095,-179.0,0.000211,2]
[315114330,1708842646106,-300.0,0.00021103,2]
[315114331,1708842646117,-224.999,0.0002112,2]
[315114332,1708842646127,-224.999,0.0002112,2]
[315114333,1708842646138,-225.0,0.0002112,2]
[315114334,1708842646149,-224.999,0.0002112,2]
[315114336,1708842646163,-224.999,0.0002112,2]
[315114338,1708842646174,-170.012599,0.00021171,2]
[315114340,1708842646185,-202.6478021,0.00021178,2]
[315114342,1708842646194,-165.270809,0.00021202,2]
[315114344,1708842646205,-705.327542,0.00021202,2]
[315114346,1708842646214,-1020.100459,0.00021202,2]
[315114347,1708842646224,-500.0,0.00021224,2]
[315114348,1708842646234,-500.0,0.00021224,2]
[315114349,1708842646243,-210.69095087,0.00021224,2]
[315114350,1708842646254,-500.0,0.00021224,2]
[315114351,1708842646263,-500.0,0.00021224,2]
[315114352,1708842646272,-500.0,0.00021224,2]
[315114353,1708842646283,-458.33038167,0.00021224,2]
[315114354,1708842646292,-500.0,0.00021224,2]
[315114355,1708842646301,-500.0,0.00021224,2]
[315114357,1708842646310,-500.0,0.00021224,2]
[315114359,1708842646321,-500.0,0.00021224,2]
[315114361,1708842646331,-500.0,0.00021224,2]
[315114362,1708842646340,-500.0,0.00021224,2]
[315114363,1708842646349,-500.0,0.00021224,2]
[315114364,1708842646358,-500.0,0.00021224,2]
[315114365,1708842646367,-621.64009188,0.00021224,2]
[315114366,1708842646377,-500.0,0.00021224,2]
[315114367,1708842646386,-500.0,0.00021224,2]
[315114368,1708842646395,-500.0,0.00021224,2]
[315114369,1708842646548,-500.0,0.00021224,2]
[315114370,1708842646559,-500.0,0.00021224,2]
[315114371,1708842646569,-500.0,0.00021224,2]
[315114372,1708842646578,-394.57867525,0.00021224,2]
[315114373,1708842646587,-500.0,0.00021224,2]
[315114374,1708842646596,-50000.0,0.00021225,2]
[315114375,1708842646605,-2695.93674224,0.0002124,2]
[315114376,1708842646615,-300.0,0.00021241,2]
[315114377,1708842646624,-170.025173,0.00021343,2]
[315114378,1708842646633,-608.80837384,0.00021369,2]
[315114379,1708842646642,-593.65,0.00021369,2]
[315114380,1708842646652,-500.0,0.00021369,2]
[315114381,1708842646661,-500.0,0.00021369,2]
[315114382,1708842646670,-893.57,0.00021369,2]
[315114383,1708842646680,-508.47,0.00021369,2]
[315114384,1708842646689,-579.16871364,0.00021369,2]
[315114385,1708842646698,-1671.45,0.00021369,2]
[315114386,1708842646707,-851.02,0.00021369,2]
[315114387,1708842646716,-1547.62,0.00021369,2]
[315114388,1708842646725,-500.0,0.00021369,2]
[315114389,1708842646734,-500.0,0.00021369,2]
[315114390,1708842646743,-984.61,0.00021369,2]
[315114391,1708842646753,-1575.29,0.00021369,2]
[315114392,1708842646762,-951.86,0.00021369,2]
[315114393,1708842646771,-1108.64,0.00021369,2]
[315114394,1708842646780,-702.52821607,0.00021369,2]
[315114395,1708842646794,-565.90470413,0.00021369,2]
[315114396,1708842646806,-53.5070798,0.00021369,2]
[315114397,1708842646815,-1633.22,0.00021369,2]
[315114398,1708842646825,-517.77666447,0.00021369,2]
[315114400,1708842646947,-500.0,0.00019178,2]
[315114401,1708842646957,-500.0,0.00019452,2]
[315114402,1708842646966,-500.0,0.00019726,2]
[315114403,1708842646975,-415.39,0.0002,2]
[315114404,1708842646984,-688.29333553,0.00021369,2]
[315114405,1708842646994,-8801.12,0.00021369,2]
[315114406,1708842647003,-1720.21,0.00021369,2]
[315114407,1708842647012,-1944.57,0.00021369,2]
[315114408,1708842647021,-500.0,0.00021369,2]
[315114409,1708842647030,-1184.28,0.00021369,2]
[315114410,1708842647039,-10919.63,0.00021369,2]
[315114411,1708842647048,-500.0,0.00021369,2]
[315114412,1708842647058,-718.19,0.00021369,2]
[315114413,1708842647067,-543.41,0.00021369,2]
[315114414,1708842647076,-6251.27,0.00021369,2]
[315114415,1708842647085,-500.0,0.00021369,2]
[315114416,1708842647094,-500.0,0.00021369,2]
[315114417,1708842647103,-514.01,0.00021369,2]
[315114418,1708842647112,-716.08,0.00021369,2]
[315114419,1708842647121,-2652.32,0.00021369,2]
[315114420,1708842647131,-868.85,0.00021369,2]
[315114421,1708842647140,-1557.26,0.00021369,2]
[315114422,1708842647150,-3756.32,0.00021369,2]
[315114423,1708842647161,-500.0,0.00021369,2]
[315114424,1708842647170,-4468.64726704,0.00021369,2]
[315114425,1708842647182,-1263.20273296,0.00021369,2]
[315114426,1708842647191,-500.0,0.00021369,2]
[315114427,1708842647201,-760.39,0.00021369,2]
[315114428,1708842647210,-300.0,0.00021378,2]
[315114429,1708842647219,-166.666666,0.00021422,2]
[315114430,1708842647228,-705.327542,0.00021467,2]
[315114431,1708842647242,-1020.100459,0.00021467,2]
[315114432,1708842647251,-300.0,0.00021516,2]
[315114433,1708842647261,-821.268,0.0002156,2]
[315114434,1708842647270,-821.269,0.0002156,2]
[315114435,1708842647278,-821.268,0.0002156,2]
[315114436,1708842647287,-821.269,0.0002156,2]
[315114437,1708842647296,-821.268,0.0002156,2]
[315114438,1708842647306,-500.0,0.00021639,2]
[315114439,1708842647316,-500.0,0.00021639,2]
[315114440,1708842647325,-500.0,0.00021639,2]
[315114441,1708842647335,-500.0,0.00021639,2]
[315114442,1708842647344,-500.0,0.00021639,2]
[315114443,1708842647353,-340.54053521,0.00021639,2]
[315114444,1708842647362,-500.0,0.00021639,2]
[315114445,1708842647372,-500.0,0.00021639,2]
[315114446,1708842647381,-500.0,0.00021639,2]
[315114447,1708842647390,-500.0,0.00021639,2]
[315114448,1708842647399,-500.0,0.00021639,2]
[315114449,1708842647409,-200.0,0.00021639,2]
[315114450,1708842647418,-12847.09892082,0.0002164,2]
[315114451,1708842647428,-1000.0,0.0002164,2]
[315114452,1708842647437,-593.65,0.00021643,2]
[315114453,1708842647447,-500.0,0.00021643,2]
[315114454,1708842647456,-500.0,0.00021643,2]
[315114455,1708842647466,-893.57,0.00021643,2]
[315114456,1708842647475,-508.47,0.00021643,2]
[315114457,1708842647484,-1671.45,0.00021643,2]
[315114458,1708842647494,-851.02,0.00021643,2]
[315114459,1708842647503,-1547.62,0.00021643,2]
[315114460,1708842647512,-500.0,0.00021643,2]
[315114461,1708842647522,-500.0,0.00021643,2]
[315114462,1708842647531,-984.61,0.00021643,2]
[315114463,1708842647540,-951.86,0.00021643,2]
[315114464,1708842647549,-1108.64,0.00021643,2]
[315114465,1708842647559,-1321.94,0.00021643,2]
[315114466,1708842647567,-1633.22,0.00021643,2]
[315114467,1708842647577,-1206.07,0.00021643,2]
[315114468,1708842647586,-8801.12,0.00021643,2]
[315114469,1708842647595,-1720.21,0.00021643,2]
[315114470,1708842647603,-1944.57,0.00021643,2]
[315114471,1708842647612,-500.0,0.00021643,2]
[315114472,1708842647622,-1184.28,0.00021643,2]
[315114473,1708842647631,-6252.05388446,0.00021643,2]
[315114481,1708843114996,1883.983241,0.00017836,2]
[315114482,1708843146199,16116.016759,0.00017903,2]
[315114484,1708843169608,5874.8950045,0.00017844,2]
[315114485,1708843218094,1126.46581835,0.00018028,2]
[315114486,1708843235812,-1718.45557006,0.00018128,2]
[315114487,1708843235838,-281.38907103,0.00018129,2]
[315114488,1708843235860,-1862.38592717,0.0001813,2]
[315114489,1708843235881,-704.14144082,0.0001813,2]
[315114490,1708843235902,-4698.36691134,0.00018131,2]
[315114491,1708843235925,-2716.85882889,0.00018132,2]
[315114492,1708843236069,-300.0,0.00018134,2]
[315114493,1708843236095,-7442.40225069,0.0001814,2]
[315114494,1708843285448,336.680022,0.00017909,2]
[315114495,1708843306498,-538.0,0.00018125,2]
[315114496,1708843307189,648.8193036,0.0001787,2]
[315114498,1708843327425,163.38875591,0.00018024,2]
[315114500,1708843419691,24900.0,0.00017812,2]
[315114501,1708843483545,250.0,0.0001774,2]
[315114502,1708843542352,155.06222808,0.00018022,2]
[315114504,1708843573347,150.0,0.000216,30]
[315114508,1708843668965,677.415638,0.000181,2]
[315114509,1708843676242,1862.38592717,0.000181,2]
[315114510,1708843683391,2716.85882889,0.000181,2]
[315114511,1708843692327,281.38907103,0.000181,2]
[315114519,1708843744509,168.340011,0.00018083,2]
[315114547,1708843831927,-281.38907103,0.00018338,2]
[315114548,1708843831937,-2716.85882889,0.00018339,2]
[315114549,1708843831946,-36.05210008,0.00018339,2]
[315114561,1708843837759,-1826.33382709,0.00018339,2]
[315114562,1708843837768,-295.60593939,0.0001834,2]
[315114563,1708843837777,-154.90705577,0.00018344,2]
[315114564,1708843837788,-264.64849906,0.000187,2]
[315114565,1708843837797,-154.95351395,0.00019,2]
[315114566,1708843837806,-1572.56210968,0.00019125,2]
[315114567,1708843837816,-181.37002645,0.00019131,2]
[315114568,1708843837825,-292.0,0.00019175,2]
[315114569,1708843837834,-199.28453176,0.00019176,2]
[315114570,1708843837843,-249.34782078,0.00019176,2]
[315114571,1708843837854,-1189.66095109,0.00019176,2]
[315114572,1708843837863,-200.85035237,0.00019176,2]
[315114573,1708843837873,-302.78902919,0.00019176,2]
[315114574,1708843837882,-225.604013,0.00019176,2]
[315114575,1708843837891,-1247.14547312,0.00019176,2]
[315114576,1708843837900,-500.0,0.00019177,2]
[315114577,1708843837909,-500.0,0.00019178,2]
[315114578,1708843837918,-500.0,0.00019178,2]
[315114579,1708843837927,-500.0,0.00019178,2]
[315114580,1708843837936,-177.62150232,0.00019178,2]
[315114581,1708843837948,-322.37849768,0.00019178,2]
[315114582,1708843837957,-500.0,0.00019178,2]